fUSD/lending_fUSD_20240913
["ID","MTS","AMOUNT","RATE_DAILY","PERIOD"]
[337951491,1726213850369,-1093.2,0.00013821,2]
[337951492,1726213850379,-11624.11,0.00013821,2]
[337951493,1726213850388,-917.78,0.00013821,2]
[337951494,1726213850397,-1159.05,0.00013821,2]
[337951495,1726213850407,-500.0,0.00013821,2]
[337951496,1726213850416,-574.95,0.00013821,2]
[337951497,1726213850425,-842.87,0.00013821,2]
[337951498,1726213850434,-1758.66,0.00013821,2]
[337951499,1726213850444,-1231.94,0.00013821,2]
[337951500,1726213850454,-1093.44,0.00013821,2]
[337951501,1726213850463,-500.0,0.00013821,2]
[337951502,1726213850473,-563.15,0.00013821,2]
[337951503,1726213850483,-1503.55,0.00013821,2]
[337951504,1726213850494,-850.51,0.00013821,2]
[337951505,1726213850504,-500.0,0.00013821,2]
[337951506,1726213850514,-500.0,0.00013821,2]
[337951507,1726213850523,-558.16,0.00013821,2]
[337951508,1726213850533,-5360.5,0.00013821,2]
[337951509,1726213850544,-516.14,0.00013821,2]
[337951510,1726213850554,-716.58,0.00013821,2]
[337951511,1726213850564,-986.74,0.00013821,2]
[337951512,1726213850574,-877.5,0.00013821,2]
[337951513,1726213850585,-754.27,0.00013821,2]
[337951514,1726213850595,-1129.63,0.00013821,2]
[337951515,1726213850605,-1047.68,0.00013821,2]
[337951516,1726213850615,-734.41,0.00013821,2]
[337951517,1726213850625,-1431.62,0.00013821,2]
[337951518,1726213850635,-500.0,0.00013821,2]
[337951519,1726213850644,-772.99,0.00013821,2]
[337951520,1726213850654,-896.15,0.00013821,2]
[337951521,1726213850664,-945.02,0.00013821,2]
[337951522,1726213850674,-735.69,0.00013821,2]
[337951523,1726213850684,-674.12,0.00013821,2]
[337951524,1726213850693,-1077.83,0.00013821,2]
[337951525,1726213850703,-540.56,0.00013821,2]
[337951526,1726213850713,-670.29,0.00013821,2]
[337951527,1726213850723,-1305.1,0.00013821,2]
[337951528,1726213850737,-500.0,0.00013821,2]
[337951529,1726213850747,-849.56,0.00013821,2]
[337951530,1726213850756,-500.0,0.00013821,2]
[337951531,1726213850767,-1445.59,0.00013821,2]
[337951532,1726213850785,-1000.0,0.00013839,2]
[337951533,1726213850795,-500.0,0.00013944,2]
[337951534,1726213850806,-1679.26,0.00013944,2]
[337951535,1726213850817,-500.0,0.00013944,2]
[337951536,1726213850827,-560.88,0.00013944,2]
[337951537,1726213850837,-682.95,0.00013944,2]
[337951538,1726213850846,-1326.86,0.00013944,2]
[337951539,1726213850857,-150.0,0.00014,2]
[337951540,1726213850868,-2041.294271,0.00014011,2]
[337951541,1726213850878,-187.7,0.0001406,2]
[337951542,1726213850887,-53498.82925703,0.00014094,2]
[337951543,1726213850897,-500.0,0.00014094,2]
[337951544,1726213850907,-500.0,0.00014094,2]
[337951545,1726213850917,-822.32,0.00014094,2]
[337951546,1726213850927,-700.05,0.00014094,2]
[337951547,1726213850937,-1316.89,0.00014094,2]
[337951548,1726213850947,-524.17,0.00014094,2]
[337951549,1726213850958,-2237.11,0.00014094,2]
[337951550,1726213850969,-500.0,0.00014094,2]
[337951551,1726213850979,-500.0,0.00014094,2]
[337951552,1726213850989,-500.0,0.00014094,2]
[337951553,1726213851000,-500.0,0.00014094,2]
[337951554,1726213851010,-603.62,0.00014094,2]
[337951555,1726213851024,-500.0,0.00014094,2]
[337951556,1726213851034,-2529.88,0.00014094,2]
[337951557,1726213851044,-500.0,0.00014094,2]
[337951558,1726213851055,-705.46,0.00014094,2]
[337951559,1726213851066,-1413.4,0.00014094,2]
[337951560,1726213851077,-500.0,0.00014094,2]
[337951561,1726213851087,-500.0,0.00014094,2]
[337951562,1726213851097,-520.25,0.00014094,2]
[337951563,1726213851109,-613.32,0.00014094,2]
[337951564,1726213851119,-1254.56,0.00014094,2]
[337951565,1726213851128,-500.0,0.00014094,2]
[337951566,1726213851138,-1513.19,0.00014094,2]
[337951567,1726213851148,-1516.88,0.00014094,2]
[337951568,1726213851157,-597.25,0.00014094,2]
[337951569,1726213851167,-1266.62,0.00014094,2]
[337951570,1726213851177,-500.0,0.00014094,2]
[337951571,1726213851186,-500.0,0.00014094,2]
[337951572,1726213851196,-2037.24,0.00014094,2]
[337951573,1726213851205,-701.5,0.00014094,2]
[337951574,1726213851215,-819.14,0.00014094,2]
[337951575,1726213851225,-884.47,0.00014094,2]
[337951576,1726213851234,-3677.56,0.00014094,2]
[337951577,1726213851244,-500.0,0.00014094,2]
[337951578,1726213851254,-500.0,0.00014094,2]
[337951579,1726213851264,-2092.5,0.00014094,2]
[337951580,1726213851274,-500.0,0.00014094,2]
[337951581,1726213851284,-949.04,0.00014094,2]
[337951582,1726213851294,-962.25,0.00014094,2]
[337951583,1726213851304,-500.0,0.00014094,2]
[337951584,1726213851314,-1390.78,0.00014094,2]
[337951585,1726213851324,-1084.58,0.00014094,2]
[337951586,1726213851334,-3456.68,0.00014094,2]
[337951587,1726213851343,-843.28,0.00014094,2]
[337951588,1726213851353,-808.81,0.00014094,2]
[337951589,1726213851363,-1058.58,0.00014094,2]
[337951590,1726213851373,-1061.15,0.00014094,2]
[337951591,1726213851383,-3122.66,0.00014094,2]
[337951592,1726213851392,-726.88,0.00014094,2]
[337951593,1726213851402,-500.0,0.00014094,2]
[337951594,1726213851412,-6520.28,0.00014094,2]
[337951595,1726213851421,-500.0,0.00014094,2]
[337951596,1726213851431,-793.53,0.00014094,2]
[337951597,1726213851440,-2598.54,0.00014094,2]
[337951598,1726213851450,-749.12,0.00014094,2]
[337951599,1726213851459,-700.35,0.00014094,2]
[337951600,1726213851469,-1615.7,0.00014094,2]
[337951601,1726213851478,-13738.83,0.00014094,2]
[337951602,1726213851488,-2068.03,0.00014094,2]
[337951603,1726213851497,-1101.41,0.00014094,2]
[337951604,1726213851507,-683.53,0.00014094,2]
[337951605,1726213851517,-984.16,0.00014094,2]
[337951606,1726213851526,-2954.01,0.00014094,2]
[337951607,1726213851536,-832.6,0.00014094,2]
[337951608,1726213851545,-500.0,0.00014094,2]
[337951609,1726213851555,-819.64,0.00014094,2]
[337951610,1726213851564,-2083.19,0.00014094,2]
[337951611,1726213851574,-500.0,0.00014094,2]
[337951612,1726213851583,-1741.32,0.00014094,2]
[337951613,1726213851593,-1190.84,0.00014094,2]
[337951614,1726213851602,-500.0,0.00014094,2]
[337951615,1726213851611,-500.0,0.00014094,2]
[337951616,1726213851620,-500.0,0.00014094,2]
[337951617,1726213851629,-698.13,0.00014094,2]
[337951618,1726213851639,-500.0,0.00014094,2]
[337951619,1726213851648,-500.0,0.00014094,2]
[337951620,1726213851658,-2577.22,0.00014094,2]
[337951621,1726213851668,-500.0,0.00014094,2]
[337951622,1726213851677,-500.0,0.00014094,2]
[337951623,1726213851687,-14904.48,0.00014094,2]
[337951624,1726213851696,-500.0,0.00014094,2]
[337951625,1726213851706,-500.0,0.00014094,2]
[337951626,1726213851716,-500.0,0.00014094,2]
[337951627,1726213851727,-500.0,0.00014094,2]
[337951628,1726213851738,-884.71,0.00014094,2]
[337951629,1726213851747,-795.31,0.00014094,2]
[337951630,1726213851756,-648.12,0.00014094,2]
[337951631,1726213851767,-500.0,0.00014094,2]
[337951632,1726213851776,-765.18,0.00014094,2]
[337951633,1726213851786,-500.0,0.00014094,2]
[337951634,1726213851796,-500.0,0.00014094,2]
[337951635,1726213851805,-733.15,0.00014094,2]
[337951636,1726213851815,-719.1,0.00014095,2]
[337951637,1726213851824,-518.96,0.00014095,2]
[337951638,1726213851834,-500.0,0.00014095,2]
[337951639,1726213851843,-500.0,0.00014095,2]
[337951640,1726213851853,-500.0,0.00014095,2]
[337951641,1726213851862,-687.62,0.00014095,2]
[337951642,1726213851872,-500.0,0.00014095,2]
[337951643,1726213851881,-500.0,0.00014095,2]
[337951644,1726213851891,-500.0,0.00014095,2]
[337951645,1726213851900,-500.0,0.00014095,2]
[337951646,1726213851910,-500.0,0.00014095,2]
[337951647,1726213851920,-500.0,0.00014095,2]
[337951648,1726213851929,-1097.55,0.00014095,2]
[337951649,1726213851940,-688.42,0.00014095,2]
[337951650,1726213851949,-2251.54,0.00014095,2]
[337951651,1726213851959,-500.0,0.00014095,2]
[337951652,1726213851968,-500.0,0.00014095,2]
[337951653,1726213851978,-680.82,0.00014095,2]
[337951654,1726213851987,-500.0,0.00014095,2]
[337951655,1726213851997,-788.87,0.00014095,2]
[337951656,1726213852006,-500.0,0.00014095,2]
[337951657,1726213852017,-524.66172338,0.00014095,2]
[337951658,1726213852027,-500.0,0.00014095,2]
[337951659,1726213852036,-754.37,0.00014095,2]
[337951660,1726213852046,-542.73,0.00014095,2]
[337951661,1726213852056,-853.47,0.00014095,2]
[337951662,1726213852066,-1395.22,0.00014095,2]
[337951663,1726213852076,-500.0,0.00014095,2]
[337951664,1726213852086,-613.01,0.00014095,2]
[337951665,1726213852095,-569.39,0.00014095,2]
[337951666,1726213852105,-844.23,0.00014095,2]
[337951667,1726213852114,-500.0,0.00014095,2]
[337951668,1726213852125,-726.04,0.00014095,2]
[337951669,1726213852134,-868.76,0.00014095,2]
[337951670,1726213852144,-500.0,0.00014095,2]
[337951671,1726213852154,-500.0,0.00014095,2]
[337951672,1726213852163,-511.52,0.00014095,2]
[337951673,1726213852173,-500.0,0.00014095,2]
[337951674,1726213852182,-971.45,0.00014095,2]
[337951675,1726213852192,-640.95,0.00014095,2]
[337951676,1726213852203,-500.0,0.00014095,2]
[337951677,1726213852213,-500.0,0.00014095,2]
[337951678,1726213852224,-500.0,0.00014095,2]
[337951679,1726213852235,-500.0,0.00014095,2]
[337951680,1726213852245,-500.0,0.00014095,2]
[337951681,1726213852255,-991.1,0.00014095,2]
[337951682,1726213852266,-792.55,0.00014095,2]
[337951683,1726213852275,-500.0,0.00014095,2]
[337951684,1726213852285,-464.09,0.00014095,2]
[337951685,1726213852295,-728.38,0.00014095,2]
[337951686,1726213852304,-1547.46,0.00014095,2]
[337951687,1726213852314,-567.19,0.00014095,2]
[337951688,1726213852324,-665.96,0.00014095,2]
[337951689,1726213852333,-500.0,0.00014095,2]
[337951690,1726213852343,-500.0,0.00014095,2]
[337951691,1726213852353,-692.91,0.00014095,2]
[337951692,1726213852363,-1032.82,0.00014095,2]
[337951693,1726213852373,-500.0,0.00014095,2]
[337951694,1726213852382,-629.1,0.00014095,2]
[337951695,1726213852392,-649.02,0.00014095,2]
[337951696,1726213852402,-500.0,0.00014095,2]
[337951697,1726213852412,-743.99,0.00014095,2]
[337951698,1726213852421,-756.68,0.00014095,2]
[337951699,1726213852431,-500.0,0.00014095,2]
[337951700,1726213852440,-822.23,0.00014095,2]
[337951701,1726213852450,-539.74,0.00014095,2]
[337951702,1726213852459,-1034.9,0.00014095,2]
[337951703,1726213852469,-500.0,0.00014095,2]
[337951704,1726213852478,-911.76,0.00014095,2]
[337951705,1726213852488,-500.0,0.00014095,2]
[337951706,1726213852497,-619.66,0.00014095,2]
[337951707,1726213852507,-500.0,0.00014095,2]
[337951708,1726213852518,-1001.47,0.00014095,2]
[337951709,1726213852527,-797.54,0.00014095,2]
[337951710,1726213852537,-500.0,0.00014095,2]
[337951711,1726213852546,-931.62,0.00014095,2]
[337951712,1726213852555,-500.0,0.00014095,2]
[337951713,1726213852565,-561.96,0.00014095,2]
[337951714,1726213852575,-501.86,0.00014095,2]
[337951715,1726213852584,-500.0,0.00014095,2]
[337951716,1726213852594,-1558.83,0.00014095,2]
[337951717,1726213852604,-500.0,0.00014095,2]
[337951718,1726213852614,-1350.65,0.00014095,2]
[337951719,1726213852623,-785.01,0.00014095,2]
[337951720,1726213852633,-500.0,0.00014095,2]
[337951721,1726213852643,-500.0,0.00014095,2]
[337951722,1726213852653,-500.0,0.00014095,2]
[337951723,1726213852912,-500.0,0.00014095,2]
[337951724,1726213852924,-500.0,0.00014095,2]
[337951725,1726213852933,-500.0,0.00014095,2]
[337951726,1726213852942,-524.29,0.00014095,2]
[337951727,1726213852951,-646.17,0.00014095,2]
[337951728,1726213852961,-1142.81,0.00014095,2]
[337951729,1726213852970,-936.94,0.00014095,2]
[337951730,1726213852979,-500.0,0.00014095,2]
[337951731,1726213852989,-711.24,0.00014095,2]
[337951732,1726213852998,-500.0,0.00014095,2]
[337951733,1726213853009,-335.25214361,0.00014095,2]
[337951734,1726213853019,-500.0,0.00014095,2]
[337951735,1726213853028,-562.66,0.00014095,2]
[337951736,1726213853037,-500.0,0.00014095,2]
[337951737,1726213853046,-500.0,0.00014095,2]
[337951738,1726213853057,-653.0,0.00014095,2]
[337951739,1726213853067,-853.97,0.00014095,2]
[337951740,1726213853076,-500.0,0.00014095,2]
[337951741,1726213853086,-500.0,0.00014095,2]
[337951742,1726213853096,-500.0,0.00014095,2]
[337951743,1726213853107,-1093.66,0.00014095,2]
[337951744,1726213853116,-1322.47,0.00014095,2]
[337951745,1726213853125,-787.84,0.00014095,2]
[337951746,1726213853135,-657.72,0.00014095,2]
[337951747,1726213853146,-741.0,0.00014095,2]
[337951748,1726213853156,-500.0,0.00014095,2]
[337951749,1726213853167,-1499.96,0.00014095,2]
[337951750,1726213853178,-839.44,0.00014095,2]
[337951751,1726213853189,-716.46,0.00014095,2]
[337951752,1726213853198,-748.32,0.00014095,2]
[337951753,1726213853208,-2249.45,0.00014095,2]
[337951754,1726213853217,-500.0,0.00014095,2]
[337951755,1726213853226,-500.0,0.00014095,2]
[337951756,1726213853236,-620.77,0.00014095,2]
[337951757,1726213853245,-735.53,0.00014095,2]
[337951758,1726213853256,-500.0,0.00014095,2]
[337951759,1726213853266,-500.0,0.00014095,2]
[337951760,1726213853275,-500.0,0.00014095,2]
[337951761,1726213853285,-500.0,0.00014095,2]
[337951762,1726213853294,-500.0,0.00014095,2]
[337951763,1726213853304,-500.0,0.00014095,2]
[337951764,1726213853314,-960.0,0.00014095,2]
[337951765,1726213853323,-1368.79,0.00014095,2]
[337951766,1726213853332,-761.5,0.00014095,2]
[337951767,1726213853343,-205.86592572,0.00014095,2]
[337951768,1726213853353,-500.0,0.00014095,2]
[337951769,1726213853363,-500.0,0.00014095,2]
[337951770,1726213853373,-740.63,0.00014095,2]
[337951771,1726213853382,-500.0,0.00014095,2]
[337951772,1726213853392,-1225.34,0.00014095,2]
[337951773,1726213853402,-17658.12,0.00014095,2]
[337951774,1726213853412,-500.0,0.00014095,2]
[337951775,1726213853421,-904.75,0.00014095,2]
[337951776,1726213853431,-958.77,0.00014095,2]
[337951777,1726213853440,-1641.0,0.00014095,2]
[337951778,1726213853450,-773.78,0.00014095,2]
[337951779,1726213853459,-605.11,0.00014095,2]
[337951780,1726213853468,-500.0,0.00014095,2]
[337951781,1726213853477,-500.0,0.00014095,2]
[337951782,1726213853487,-655.76,0.00014095,2]
[337951783,1726213853496,-500.0,0.00014095,2]
[337951784,1726213853505,-661.13,0.00014095,2]
[337951785,1726213853514,-500.0,0.00014095,2]
[337951786,1726213853523,-1608.56,0.00014095,2]
[337951787,1726213853532,-468.17278691,0.00014095,2]
[337951788,1726213853541,-740.0,0.00014095,2]
[337951789,1726213853551,-626.56,0.00014095,2]
[337951790,1726213853560,-3047.98,0.00014095,2]
[337951791,1726213853569,-848.45,0.00014095,2]
[337951792,1726213853578,-1093.2,0.00014095,2]
[337951793,1726213853588,-11624.11,0.00014095,2]
[337951794,1726213853598,-917.78,0.00014095,2]
[337951795,1726213853608,-1159.05,0.00014095,2]
[337951796,1726213853617,-351.03293341,0.00014095,2]
[337951797,1726213853626,-574.95,0.00014095,2]
[337951798,1726213853636,-842.87,0.00014095,2]
[337951799,1726213853645,-1758.66,0.00014095,2]
[337951800,1726213853654,-1231.94,0.00014095,2]
[337951801,1726213853664,-1093.44,0.00014095,2]
[337951802,1726213853673,-500.0,0.00014095,2]
[337951803,1726213853683,-563.15,0.00014095,2]
[337951804,1726213853693,-1503.55,0.00014095,2]
[337951805,1726213853702,-850.51,0.00014095,2]
[337951806,1726213853711,-500.0,0.00014095,2]
[337951807,1726213853720,-500.0,0.00014095,2]
[337951808,1726213853733,-558.16,0.00014095,2]
[337951809,1726213853743,-5360.5,0.00014095,2]
[337951810,1726213853765,-516.14,0.00014095,2]
[337951811,1726213853775,-716.58,0.00014095,2]
[337951812,1726213853786,-986.74,0.00014095,2]
[337951813,1726213853795,-877.5,0.00014095,2]
[337951814,1726213853804,-754.27,0.00014095,2]
[337951815,1726213853814,-1129.63,0.00014095,2]
[337951816,1726213853824,-1047.68,0.00014095,2]
[337951817,1726213853834,-734.41,0.00014095,2]
[337951818,1726213853844,-1431.62,0.00014095,2]
[337951819,1726213853854,-500.0,0.00014095,2]
[337951820,1726213853863,-772.99,0.00014095,2]
[337951821,1726213853872,-896.15,0.00014095,2]
[337951822,1726213853882,-945.02,0.00014095,2]
[337951823,1726213853892,-735.69,0.00014095,2]
[337951824,1726213853901,-674.12,0.00014095,2]
[337951825,1726213853911,-1077.83,0.00014095,2]
[337951826,1726213853921,-540.56,0.00014095,2]
[337951827,1726213853931,-670.29,0.00014095,2]
[337951828,1726213853940,-1305.1,0.00014095,2]
[337951829,1726213853950,-500.0,0.00014095,2]
[337951830,1726213853960,-849.56,0.00014095,2]
[337951831,1726213853970,-500.0,0.00014095,2]
[337951832,1726213853980,-1445.59,0.00014095,2]
[337951833,1726213853990,-566.0,0.00014191,2]
[337951834,1726213854000,-375.03,0.00014192,2]
[337951835,1726213854011,-385.97704013,0.00014218,2]
[337951836,1726213854024,-1679.26,0.00014218,2]
[337951837,1726213854040,-500.0,0.00014218,2]
[337951838,1726213854050,-560.88,0.00014218,2]
[337951839,1726213854060,-682.95,0.00014218,2]
[337951840,1726213854069,-1326.86,0.00014218,2]
[337951841,1726213854079,-2041.294271,0.00014233,2]
[337951842,1726213854089,-1009.66,0.0001429,2]
[337951843,1726213854099,-11436.0,0.000143,2]
[337951844,1726213854108,-500.0,0.00014368,2]
[337951845,1726213854118,-500.0,0.00014368,2]
[337951846,1726213854127,-822.32,0.00014368,2]
[337951847,1726213854137,-700.05,0.00014368,2]
[337951848,1726213854146,-1316.89,0.00014368,2]
[337951849,1726213854156,-524.17,0.00014368,2]
[337951850,1726213854165,-2237.11,0.00014368,2]
[337951851,1726213854175,-500.0,0.00014368,2]
[337951852,1726213854184,-500.0,0.00014368,2]
[337951853,1726213854193,-500.0,0.00014368,2]
[337951854,1726213854203,-500.0,0.00014368,2]
[337951855,1726213854214,-603.62,0.00014368,2]
[337951856,1726213854223,-500.0,0.00014368,2]
[337951857,1726213854234,-2529.88,0.00014368,2]
[337951858,1726213854244,-500.0,0.00014368,2]
[337951859,1726213854255,-705.46,0.00014368,2]
[337951860,1726213854264,-1413.4,0.00014368,2]
[337951861,1726213854276,-500.0,0.00014368,2]
[337951862,1726213854286,-368.47889128,0.00014368,2]
[337951863,1726213854296,-520.25,0.00014368,2]
[337951864,1726213854306,-613.32,0.00014368,2]
[337951865,1726213854315,-1254.56,0.00014368,2]
[337951866,1726213854325,-500.0,0.00014368,2]
[337951867,1726213854335,-1513.19,0.00014368,2]
[337951868,1726213854345,-1516.88,0.00014368,2]
[337951869,1726213854354,-597.25,0.00014368,2]
[337951870,1726213854364,-1266.62,0.00014368,2]
[337951871,1726213854373,-500.0,0.00014368,2]
[337951872,1726213854383,-500.0,0.00014368,2]
[337951873,1726213854392,-2037.24,0.00014368,2]
[337951874,1726213854402,-701.5,0.00014368,2]
[337951875,1726213854411,-819.14,0.00014368,2]
[337951876,1726213854421,-884.47,0.00014368,2]
[337951877,1726213854430,-3677.56,0.00014368,2]
[337951878,1726213854439,-500.0,0.00014368,2]
[337951879,1726213854449,-500.0,0.00014368,2]
[337951880,1726213854459,-2092.5,0.00014368,2]
[337951881,1726213854469,-500.0,0.00014368,2]
[337951882,1726213854478,-949.04,0.00014368,2]
[337951883,1726213854488,-962.25,0.00014368,2]
[337951884,1726213854497,-500.0,0.00014368,2]
[337951885,1726213854507,-1390.78,0.00014368,2]
[337951886,1726213854516,-1084.58,0.00014368,2]
[337951887,1726213854526,-3456.68,0.00014368,2]
[337951888,1726213854535,-843.28,0.00014368,2]
[337951889,1726213854545,-808.81,0.00014368,2]
[337951890,1726213854554,-1058.58,0.00014368,2]
[337951891,1726213854563,-1061.15,0.00014368,2]
[337951892,1726213854573,-3122.66,0.00014368,2]
[337951893,1726213854582,-726.88,0.00014368,2]
[337951894,1726213854591,-500.0,0.00014368,2]
[337951895,1726213854601,-6520.28,0.00014368,2]
[337951896,1726213854611,-500.0,0.00014368,2]
[337951897,1726213854620,-793.53,0.00014368,2]
[337951898,1726213854629,-2598.54,0.00014368,2]
[337951899,1726213854638,-749.12,0.00014368,2]
[337951900,1726213854647,-700.35,0.00014368,2]
[337951901,1726213854656,-1615.7,0.00014368,2]
[337951902,1726213854666,-13738.83,0.00014368,2]
[337951903,1726213854675,-2068.03,0.00014368,2]
[337951904,1726213854684,-1101.41,0.00014368,2]
[337951905,1726213854693,-683.53,0.00014368,2]
[337951906,1726213854702,-984.16,0.00014368,2]
[337951907,1726213854712,-2954.01,0.00014368,2]
[337951908,1726213854721,-832.6,0.00014368,2]
[337951909,1726213854733,-500.0,0.00014368,2]
[337951910,1726213854743,-819.64,0.00014368,2]
[337951911,1726213854752,-2083.19,0.00014368,2]
[337951912,1726213854761,-500.0,0.00014368,2]
[337951913,1726213854772,-1741.32,0.00014368,2]
[337951914,1726213854781,-1190.84,0.00014368,2]
[337951915,1726213854790,-602.6134909,0.00014368,2]
[337951916,1726213854799,-500.0,0.00014368,2]
[337951917,1726213854810,-500.0,0.00014368,2]
[337951918,1726213854820,-698.13,0.00014368,2]
[337951919,1726213854829,-500.0,0.00014368,2]
[337951920,1726213854838,-500.0,0.00014368,2]
[337951921,1726213854848,-2577.22,0.00014368,2]
[337951922,1726213854857,-500.0,0.00014368,2]
[337951923,1726213854866,-500.0,0.00014368,2]
[337951924,1726213854876,-14904.48,0.00014368,2]
[337951925,1726213854885,-500.0,0.00014368,2]
[337951926,1726213854895,-500.0,0.00014368,2]
[337951927,1726213854904,-500.0,0.00014368,2]
[337951928,1726213854914,-500.0,0.00014368,2]
[337951929,1726213854923,-884.71,0.00014368,2]
[337951930,1726213854932,-795.31,0.00014368,2]
[337951931,1726213854942,-648.12,0.00014368,2]
[337951932,1726213854951,-500.0,0.00014368,2]
[337951933,1726213854960,-765.18,0.00014368,2]
[337951934,1726213854969,-500.0,0.00014368,2]
[337951935,1726213854978,-500.0,0.00014368,2]
[337951936,1726213854987,-733.15,0.00014368,2]
[337951937,1726213854996,-719.1,0.00014369,2]
[337951938,1726213855006,-518.96,0.00014369,2]
[337951939,1726213855015,-500.0,0.00014369,2]
[337951940,1726213855027,-500.0,0.00014369,2]
[337951941,1726213855037,-500.0,0.00014369,2]
[337951942,1726213855046,-687.62,0.00014369,2]
[337951943,1726213855056,-500.0,0.00014369,2]
[337951944,1726213855065,-500.0,0.00014369,2]
[337951945,1726213855074,-500.0,0.00014369,2]
[337951946,1726213855083,-500.0,0.00014369,2]
[337951947,1726213855092,-500.0,0.00014369,2]
[337951948,1726213855101,-500.0,0.00014369,2]
[337951949,1726213855110,-1097.55,0.00014369,2]
[337951950,1726213855120,-688.42,0.00014369,2]
[337951951,1726213855129,-2251.54,0.00014369,2]
[337951952,1726213855138,-500.0,0.00014369,2]
[337951953,1726213855147,-500.0,0.00014369,2]
[337951954,1726213855156,-680.82,0.00014369,2]
[337951955,1726213855165,-500.0,0.00014369,2]
[337951956,1726213855174,-788.87,0.00014369,2]
[337951957,1726213855183,-500.0,0.00014369,2]
[337951958,1726213855192,-500.0,0.00014369,2]
[337951959,1726213855201,-754.37,0.00014369,2]
[337951960,1726213855265,-542.73,0.00014369,2]
[337951961,1726213855275,-853.47,0.00014369,2]
[337951962,1726213855285,-1395.22,0.00014369,2]
[337951963,1726213855294,-227.44518312,0.00014369,2]
[337951964,1726213855303,-613.01,0.00014369,2]
[337951965,1726213855312,-569.39,0.00014369,2]
[337951966,1726213855321,-844.23,0.00014369,2]
[337951967,1726213855331,-500.0,0.00014369,2]
[337951968,1726213855339,-726.04,0.00014369,2]
[337951969,1726213855348,-868.76,0.00014369,2]
[337951970,1726213855358,-500.0,0.00014369,2]
[337951971,1726213855367,-500.0,0.00014369,2]
[337951972,1726213855376,-511.52,0.00014369,2]
[337951973,1726213855385,-500.0,0.00014369,2]
[337951974,1726213855394,-971.45,0.00014369,2]
[337951975,1726213855403,-640.95,0.00014369,2]
[337951976,1726213855412,-500.0,0.00014369,2]
[337951977,1726213855421,-500.0,0.00014369,2]
[337951978,1726213855430,-500.0,0.00014369,2]
[337951979,1726213855439,-500.0,0.00014369,2]
[337951980,1726213855449,-500.0,0.00014369,2]
[337951981,1726213855457,-991.1,0.00014369,2]
[337951982,1726213855467,-792.55,0.00014369,2]
[337951983,1726213855476,-500.0,0.00014369,2]
[337951984,1726213855485,-464.09,0.00014369,2]
[337951985,1726213855494,-728.38,0.00014369,2]
[337951986,1726213855503,-1547.46,0.00014369,2]
[337951987,1726213855512,-567.19,0.00014369,2]
[337951988,1726213855521,-665.96,0.00014369,2]
[337951989,1726213855529,-500.0,0.00014369,2]
[337951990,1726213855538,-500.0,0.00014369,2]